bitfinex-derivatives/quotes_SOLF0:USTF0_20240912
["timestamp","ask_amount","ask_price","bid_price","bid_amount"]
[1726155187897,6.1679,134.81,134.77,3.339]
[1726155188296,11.39,134.84,134.77,14.729]
[1726155188501,3.3378,134.83,134.79,11.39]
[1726155189304,3.3375,134.84,134.8,11.39]
[1726155189703,3.3375,134.84,134.8,14.7282]
[1726155189904,11.39,134.83,134.75,2.6794]
[1726155190101,11.39,134.8,134.75,14.0694]
[1726155190308,11.39,134.82,134.76,3.3393]
[1726155190615,11.39,134.82,134.76,3.80045419]
[1726155190616,3.3383,134.81,134.76,3.80045419]
[1726155190827,11.39,134.84,134.78,11.39]
[1726155191113,3.3375,134.84,134.79,11.39]
[1726155191303,16.8723,134.85,134.79,11.39]
[1726155191503,16.8723,134.85,134.8,3.3382]
[1726155191709,20.2095,134.85,134.8,3.3382]
[1726155192013,20.2095,134.85,134.79,11.39]
[1726155192014,16.8723,134.85,134.79,14.7285]
[1726155192312,3.3375,134.84,134.79,14.7285]
[1726155192711,16.8723,134.85,134.79,14.7285]
[1726155193299,3.3379,134.82,134.78,14.7289]
[1726155193702,14.7277,134.83,134.78,14.7289]
[1726155194113,5.4823,134.85,134.78,11.39]
[1726155194303,3.3375,134.84,134.79,11.39]
[1726155194711,11.39,134.83,134.74,7.437]
[1726155194906,11.39,134.83,134.78,11.39]
[1726155195108,14.7278,134.83,134.78,11.39]
[1726155195412,14.7278,134.83,134.78,14.7289]
[1726155195714,3.338,134.82,134.78,11.39]
[1726155195920,11.39,134.83,134.77,11.39]
[1726155196115,3.338,134.82,134.77,11.39]
[1726155196414,11.39,134.84,134.78,3.3387]
[1726155196616,3.3382,134.81,134.77,11.39]
[1726155197116,3.3382,134.81,134.77,14.729]
[1726155197699,5.4823,134.85,134.79,11.39]
[1726155197907,5.4823,134.85,134.8,11.39]
[1726155198101,5.4823,134.85,134.81,3.65976203]
[1726155198308,234.6693,134.96,134.82,11.39]
[1726155198507,11.39,134.89,134.82,15.08945737]
[1726155198804,11.39,134.87,134.81,14.7281]
[1726155199009,3.3373,134.85,134.82,3.78849365]
[1726155199211,3.3373,134.85,134.81,14.7281]
[1726155199613,11.39,134.87,134.81,14.7281]
[1726155199614,11.39,134.87,134.81,11.39]
[1726155200113,11.39,134.87,134.81,15.04709835]
[1726155200507,11.39,134.86,134.81,11.39]
[1726155200814,11.39,134.86,134.79,11.39]
[1726155201111,11.39,134.86,134.8,3.3383]
[1726155201112,3.3376,134.84,134.8,3.3383]
[1726155201420,11.39,134.86,134.8,3.3383]
[1726155201609,3.3375,134.84,134.8,3.3383]
[1726155202515,6.1824,134.85,134.81,6.98778105]
[1726155202901,2.8451,134.85,134.8,14.7283]
[1726155203105,3.3376,134.84,134.8,11.39]
[1726155203311,2.8451,134.85,134.81,3.63808322]
[1726155203509,2.8451,134.85,134.75,2.2734]
[1726155203510,11.39,134.88,134.83,3.3376]
[1726155203715,11.39,134.88,134.82,11.39]
[1726155204210,3.3367,134.87,134.83,3.3375]
[1726155205431,3.3369,134.86,134.82,14.7278]
[1726155205716,11.39,134.88,134.82,11.39]
[1726155206218,11.39,134.88,134.81,3.66664194]
[1726155206219,11.39,134.87,134.81,15.05664194]
[1726155206406,3.337,134.86,134.82,3.3378]
[1726155207008,3.337,134.86,134.82,7.07065118]
[1726155208625,11.39,134.85,134.81,3.68537925]
[1726155208824,11.39,134.87,134.79,11.39]
[1726155209122,14.0005,134.89,134.84,3.3372]
[1726155209723,3.3365,134.88,134.84,3.3372]
[1726155210117,5.9468,134.89,134.85,11.39]
[1726155210419,2.8096,134.9,134.86,11.39]
[1726155210819,2.8096,134.9,134.87,3.3365]
[1726155211121,11.39,134.92,134.87,3.3365]
[1726155211310,3.3358,134.91,134.87,3.3365]
[1726155211514,3.3358,134.91,134.86,11.39]
[1726155211919,3.3357,134.91,134.87,3.3365]
[1726155212321,3.3359,134.9,134.87,3.3365]
[1726155214130,3.3359,134.9,134.86,14.7268]
[1726155215227,3.3359,134.9,134.87,3.3366]
[1726155216212,3.3359,134.9,134.86,3.3368]
[1726155217116,3.3359,134.9,134.87,3.3366]
[1726155219425,3.3359,134.9,134.86,14.7268]
[1726155219624,3.3362,134.89,134.86,14.7268]
[1726155220424,3.336,134.9,134.86,14.7268]
[1726155221831,3.3362,134.89,134.86,14.7268]
[1726155222225,3.3362,134.89,134.86,3.3368]
[1726155222619,11.82429007,134.94,134.85,7.09497359]
[1726155222620,11.39,134.91,134.85,7.09497359]
[1726155222931,11.39,134.88,134.83,3.75760047]
[1726155223140,3.3367,134.87,134.84,3.3373]
[1726155223727,3.337,134.86,134.82,3.67232685]
[1726155224035,3.337,134.86,134.8,11.39]
[1726155224036,6.65638896,134.86,134.8,11.39]
[1726155224217,23.31728896,134.87,134.8,11.39]
[1726155224418,3.3373,134.85,134.81,7.10227406]
[1726155224631,6.65638896,134.84,134.81,7.10227406]
[1726155225036,6.65638896,134.86,134.81,7.10227406]
[1726155225333,3.3376,134.84,134.81,7.10227406]
[1726155225539,6.65638896,134.83,134.81,7.10227406]
[1726155225735,6.65762158,134.82,134.81,7.10227406]
[1726155225924,6.65762158,134.82,134.76,6.9649]
[1726155226124,11.39,134.84,134.77,11.39]
[1726155226338,17.31136553,134.83,134.78,3.3387]
[1726155226643,9.99599982,134.82,134.78,3.3387]
[1726155226831,3.338,134.82,134.78,3.3387]
[1726155227024,3.3385,134.8,134.77,11.39]
[1726155227224,6.65809743,134.81,134.77,11.39]
[1726155227439,6.65853014,134.8,134.77,11.39]
[1726155227740,11.39,134.81,134.74,3.66589581]
[1726155227937,11.39,134.78,134.72,13.6603]
[1726155228239,17.31364055,134.8,134.73,3.34]
[1726155228240,9.99820485,134.77,134.73,3.34]
[1726155228442,5.5976,134.8,134.72,17.82]
[1726155228636,6.65968413,134.79,134.72,17.82]
[1726155228930,5.5976,134.8,134.72,17.82]
[1726155228931,6.65968413,134.78,134.75,3.3395]
[1726155229142,5.5976,134.8,134.76,3.74814485]
[1726155229437,9.99799991,134.79,134.74,3.3397]
[1726155229637,6.65909991,134.78,134.71,17.82]
[1726155230335,3.3389,134.79,134.71,17.82]
[1726155230528,6.65916665,134.78,134.74,3.3397]
[1726155230728,3.3389,134.79,134.74,6.98915087]
[1726155230935,6.65908309,134.78,134.74,3.3397]
[1726155231136,3.3389,134.79,134.74,3.3397]
[1726155231338,6.6591615,134.78,134.74,3.3397]
[1726155231541,3.3389,134.79,134.74,7.12680299]
[1726155231737,6.65922921,134.78,134.74,3.3397]
[1726155231926,3.3389,134.79,134.74,3.3397]
[1726155232237,6.65912857,134.78,134.74,6.97764167]
[1726155232426,3.3389,134.79,134.74,6.97764167]
[1726155232625,6.65917514,134.78,134.74,6.97764167]
[1726155232826,3.3389,134.79,134.74,6.97764167]
[1726155233141,6.65918373,134.78,134.75,3.3396]
[1726155233431,3.3389,134.79,134.75,3.3396]
[1726155233834,3.3389,134.79,134.76,3.69582813]
[1726155235530,3.3389,134.79,134.76,7.03522813]
[1726155235728,8.9361,134.8,134.76,7.03522813]
[1726155235931,2.5912,134.86,134.78,3.3387]
[1726155236232,6.65881404,134.79,134.78,3.3387]
[1726155236449,5.2096,134.85,134.78,17.82]
[1726155236735,10.65249746,134.84,134.8,3.3383]
[1726155237040,3.3376,134.84,134.8,3.3383]
[1726155237645,3.3377,134.83,134.8,3.3383]
[1726155238236,3.3374,134.84,134.8,3.3382]
[1726155238438,5.2096,134.85,134.8,3.3382]
[1726155238740,3.3377,134.83,134.79,3.3386]
[1726155238926,5.2096,134.85,134.79,3.3386]
[1726155239328,5.2096,134.85,134.76,3.69582813]
[1726155239527,5.2096,134.85,134.74,19.8521]
[1726155240131,5.2096,134.85,134.74,23.47005252]
[1726155240743,3.338,134.82,134.74,23.47005252]
[1726155241140,3.338,134.82,134.78,3.3387]
[1726155243245,23.0296,134.85,134.74,23.47005252]
[1726155243432,17.82,134.83,134.74,23.47005252]
[1726155243747,17.82,134.83,134.76,3.3393]
[1726155244243,3.3385,134.8,134.76,3.3393]
[1726155244838,3.3385,134.8,134.74,21.43795252]
[1726155244839,3.3382,134.81,134.77,3.3389]
[1726155245450,3.3385,134.8,134.77,3.3389]
[1726155246338,17.82,134.8,134.74,3.61795252]
[1726155246649,3.3393,134.77,134.74,3.3397]
[1726155246856,3.3393,134.77,134.74,7.04814464]
[1726155247047,3.3393,134.77,134.74,3.3397]
[1726155247546,3.3393,134.77,134.74,3.75482338]
[1726155247740,3.3393,134.77,134.73,3.34]
[1726155248146,3.3395,134.76,134.72,3.3404]
[1726155248344,17.82,134.78,134.7,7.437]
[1726155248546,6.56986883,134.77,134.7,7.437]
[1726155248749,6.56986883,134.76,134.69,3.6851]
[1726155248939,6.56986883,134.75,134.69,3.6851]
[1726155249139,20.5318,134.78,134.69,3.6851]
[1726155249339,3.3394,134.76,134.71,3.3404]
[1726155249546,6.56997392,134.75,134.71,3.3404]
[1726155249847,20.5318,134.78,134.71,3.3404]
[1726155250151,3.3395,134.76,134.71,3.3404]
[1726155250355,6.56998096,134.75,134.71,3.3404]
[1726155250538,3.3395,134.76,134.71,3.3404]
[1726155251240,20.5318,134.78,134.69,3.6851]
[1726155251436,3.3398,134.75,134.7,3.3408]
[1726155252439,17.82,134.76,134.69,3.341]
[1726155252646,6.57051412,134.75,134.66,7.437]
[1726155252846,17.82,134.74,134.66,7.437]
[1726155253049,3.3406,134.72,134.68,10.7783]
[1726155253350,3.3406,134.72,134.68,7.437]
[1726155253546,3.3406,134.72,134.69,3.67856286]
[1726155253747,3.3402,134.73,134.69,3.67856286]
[1726155253957,5.4142,134.74,134.68,7.437]
[1726155254253,2.7118,134.78,134.7,7.437]
[1726155254446,3.3395,134.76,134.71,3.3406]
[1726155254640,6.56987163,134.77,134.72,3.75408677]
[1726155254851,7.9903,134.78,134.7,7.437]
[1726155255046,3.3395,134.76,134.71,3.3404]
[1726155255249,3.3395,134.76,134.72,3.69878136]
[1726155255640,3.3395,134.76,134.72,7.03918136]
[1726155255838,3.3395,134.76,134.72,3.3404]
[1726155256053,3.3395,134.76,134.69,7.437]
[1726155256255,3.3395,134.76,134.69,11.20110855]
[1726155256753,3.3392,134.77,134.69,11.20110855]
[1726155257153,3.3394,134.76,134.72,3.3402]
[1726155257743,3.3394,134.76,134.71,3.3405]
[1726155257948,3.3397,134.75,134.71,3.3405]
[1726155258150,3.3397,134.75,134.7,10.7777]
[1726155258757,17.82,134.77,134.7,10.7777]
[1726155258962,3.3399,134.74,134.7,10.7777]
[1726155259260,7.9903,134.78,134.7,10.7777]
[1726155259449,3.3397,134.75,134.71,3.3406]
[1726155261164,3.3395,134.76,134.72,3.3402]
[1726155261364,7.9903,134.78,134.7,7.437]
[1726155261568,6.56999601,134.77,134.7,7.437]
[1726155261767,6.57014071,134.76,134.7,7.437]
[1726155261957,7.9903,134.78,134.7,7.437]
[1726155262270,3.3398,134.75,134.71,3.3405]
[1726155262462,3.3398,134.75,134.7,7.437]
[1726155262955,7.9903,134.78,134.7,7.437]
[1726155263160,6.57011938,134.77,134.7,7.437]
[1726155263366,17.82,134.73,134.64,17.82]
[1726155263562,3.3409,134.7,134.66,3.3418]
[1726155263758,3.3409,134.7,134.66,7.01210357]
[1726155264871,3.3407,134.71,134.66,7.01210357]
[1726155265073,17.82,134.73,134.66,7.01210357]
[1726155265259,5.2122,134.72,134.66,7.01210357]
[1726155265874,3.3411,134.7,134.66,7.01210357]
[1726155266079,17.82,134.71,134.62,17.82]
[1726155266375,17.82,134.71,134.62,3.66646866]
[1726155266570,6.5728302,134.7,134.64,3.3422]
[1726155266771,17.82,134.71,134.64,7.07549373]
[1726155266974,17.82,134.71,134.62,17.82]
[1726155267675,17.82,134.71,134.64,3.3422]
[1726155268071,3.3414,134.69,134.65,3.342]
[1726155268775,3.3409,134.7,134.62,17.82]
[1726155268972,17.82,134.71,134.62,17.82]
[1726155269780,3.3412,134.69,134.65,3.342]
[1726155269979,17.82,134.71,134.62,17.82]
[1726155270979,3.3413,134.69,134.64,3.3423]
[1726155271974,3.3413,134.69,134.65,3.3421]
[1726155272175,3.3413,134.69,134.62,17.82]
[1726155272577,3.3413,134.69,134.64,3.3422]
[1726155273885,3.3414,134.68,134.64,3.3422]
[1726155274280,17.82,134.71,134.63,3.3426]
[1726155274480,3.3416,134.67,134.63,3.3426]
[1726155274781,17.82,134.71,134.6,17.82]
[1726155275285,17.82,134.69,134.63,3.3425]
[1726155275579,17.82,134.69,134.64,3.65226108]
[1726155275780,3.3416,134.68,134.6,17.82]
[1726155275986,17.82,134.69,134.6,17.82]
[1726155276176,17.82,134.69,134.6,21.48414197]
[1726155277279,17.82,134.67,134.61,3.343]
[1726155277586,17.82,134.65,134.57,2.0341]
[1726155277782,3.3425,134.64,134.59,3.3435]
[1726155278181,3.3425,134.64,134.6,3.67248009]
[1726155278486,3.3425,134.64,134.57,2.0341]
[1726155279187,3.3428,134.63,134.59,3.3434]
[1726155279385,3.3428,134.63,134.6,3.67285146]
[1726155280487,3.3425,134.64,134.6,3.67285146]
[1726155280787,3.3425,134.64,134.6,7.01615146]
[1726155280975,3.3425,134.64,134.6,3.3433]
[1726155281289,21.1627,134.63,134.58,3.3438]
[1726155281493,17.82,134.63,134.58,3.3438]
[1726155282083,17.82,134.63,134.54,1.6532]
[1726155282286,17.82,134.61,134.52,20.6786]
[1726155282488,3.3435,134.6,134.52,2.8586]
[1726155282795,17.82,134.59,134.5,1.6532]
[1726155283001,3.3444,134.56,134.5,1.6532]
[1726155283294,3.3444,134.56,134.51,3.3454]
[1726155283483,17.82,134.57,134.51,3.3454]
[1726155284280,3.3448,134.55,134.48,5.77072308]
[1726155284481,17.82,134.57,134.48,5.77072308]
[1726155285086,17.82,134.57,134.48,7.42442308]
[1726155285391,21.1642,134.57,134.48,25.24442308]
[1726155286192,3.3445,134.56,134.51,3.3454]
[1726155287692,3.3445,134.56,134.48,25.24442308]
[1726155288199,17.82,134.57,134.48,25.24442308]
[1726155288499,2.5187,134.58,134.48,25.24442308]
[1726155288697,2.5187,134.58,134.52,3.3452]
[1726155288897,3.3443,134.57,134.52,3.3452]
[1726155289390,17.82,134.57,134.51,3.3455]
[1726155289699,17.82,134.55,134.48,7.42442308]
[1726155289901,17.82,134.55,134.5,3.3458]
[1726155290101,3.3449,134.54,134.5,3.3458]
[1726155290290,17.82,134.55,134.48,3.73672308]
[1726155290493,17.82,134.55,134.46,17.82]
[1726155290791,3.3449,134.54,134.49,3.3459]
[1726155291191,3.3451,134.53,134.49,3.3459]
[1726155291390,17.82,134.55,134.49,3.3459]
[1726155291794,3.345,134.54,134.49,3.3459]
[1726155291994,17.82,134.55,134.49,3.3459]
[1726155292489,2.6283,134.54,134.49,3.3459]
[1726155293004,3.3453,134.53,134.49,3.3459]
[1726155293205,2.6283,134.54,134.5,3.3458]
[1726155293702,5.9733,134.54,134.5,3.3458]
[1726155295095,5.9733,134.54,134.51,3.3455]
[1726155296600,3.3451,134.53,134.5,3.3457]
[1726155296800,2.6283,134.54,134.44,17.82]
[1726155297006,5.9733,134.54,134.44,17.82]
[1726155297706,5.9733,134.54,134.5,3.3457]
[1726155297902,3.3451,134.53,134.5,3.72118959]
[1726155298199,17.82,134.51,134.43,0.8277]
[1726155299499,3.3459,134.5,134.46,3.3467]
[1726155299806,3.3459,134.5,134.46,7.0522762]
[1726155300902,3.3459,134.5,134.46,3.7055762]
[1726155301099,17.82,134.49,134.42,3.6949]
[1726155301305,3.3459,134.5,134.42,3.6949]
[1726155302603,3.3459,134.5,134.46,3.3467]
[1726155302803,3.3459,134.5,134.46,7.03869881]
[1726155303004,3.3459,134.5,134.46,3.3467]
[1726155303597,21.1657,134.51,134.46,7.081362]
[1726155304700,3.3459,134.5,134.46,7.081362]
[1726155305011,17.82,134.51,134.47,3.3465]
[1726155305399,17.82,134.51,134.42,3.6949]
[1726155305600,17.82,134.51,134.46,3.3468]
[1726155305804,17.82,134.51,134.46,7.03944519]
[1726155306302,2.6478,134.52,134.46,3.69264519]
[1726155306303,17.82,134.5,134.46,3.69264519]
[1726155306514,17.82,134.5,134.42,3.6949]
[1726155307210,17.82,134.5,134.39,18.6523]
[1726155307405,17.82,134.48,134.39,18.6523]
[1726155307608,21.1664,134.48,134.43,3.3474]
[1726155308205,21.1664,134.48,134.39,18.6523]
[1726155308613,2.619,134.49,134.45,3.3469]
[1726155308809,2.6478,134.52,134.45,3.76032245]
[1726155309016,20.4678,134.52,134.41,17.82]
[1726155309608,20.4678,134.52,134.43,17.82]
[1726155309803,20.4678,134.52,134.42,3.7014]
[1726155310212,3.3459,134.5,134.46,3.3467]
[1726155310421,20.4678,134.52,134.46,3.80484902]
[1726155310722,17.82,134.5,134.45,3.3471]
[1726155311013,17.82,134.5,134.42,3.7014]
[1726155311219,3.3458,134.51,134.46,3.3467]
[1726155311519,20.4678,134.52,134.46,7.05598157]
[1726155311713,20.4678,134.52,134.46,3.3467]
[1726155312112,20.4678,134.52,134.45,3.347]
[1726155312319,17.82,134.49,134.39,18.6523]
[1726155312723,21.1663,134.49,134.44,3.3473]
[1726155312906,21.1663,134.49,134.45,3.80439676]
[1726155313113,21.1663,134.49,134.39,18.6523]
[1726155313808,21.1663,134.49,134.4,17.82]
[1726155314013,3.3459,134.5,134.4,17.82]
[1726155314215,21.1659,134.5,134.4,17.82]
[1726155314419,21.1659,134.5,134.45,3.3469]
[1726155314629,3.3459,134.5,134.45,3.63368426]
[1726155314921,3.3459,134.5,134.45,3.3469]
[1726155315125,3.3464,134.48,134.4,17.82]
[1726155315421,17.82,134.49,134.42,3.3477]
[1726155315623,3.3466,134.47,134.39,18.6523]
[1726155316329,17.82,134.47,134.38,3.66242697]
[1726155316528,17.82,134.47,134.37,3.7023]
[1726155316726,17.82,134.47,134.38,17.82]
[1726155316931,3.347,134.46,134.38,17.82]
[1726155317123,20.4581,134.47,134.4,3.3482]
[1726155317426,3.3473,134.45,134.4,3.3482]
[1726155318229,17.82,134.45,134.39,3.3485]
[1726155318423,17.82,134.45,134.37,3.68649728]
[1726155318614,21.1677,134.43,134.34,19.8629]
[1726155318813,17.82,134.43,134.34,19.8629]
[1726155319317,17.82,134.43,134.34,23.6449814]
[1726155319523,21.1677,134.43,134.34,23.6449814]
[1726155319918,21.1671,134.45,134.34,23.6449814]
[1726155320223,21.1671,134.45,134.36,17.82]
[1726155320423,17.82,134.45,134.36,17.82]
[1726155320722,3.3469,134.46,134.41,3.3481]
[1726155320922,20.4581,134.47,134.42,3.72479726]
[1726155321227,20.4581,134.47,134.42,3.70954542]
[1726155321423,21.1671,134.45,134.39,3.3485]
[1726155321628,17.82,134.45,134.34,23.6449814]
[1726155321829,3.3476,134.44,134.39,3.3485]
[1726155322136,17.82,134.45,134.34,23.6449814]
[1726155322614,3.3473,134.44,134.39,3.3484]
[1726155323227,3.3476,134.43,134.38,3.3487]
[1726155323526,21.1676,134.43,134.38,3.3487]
[1726155323926,21.1676,134.43,134.39,3.3485]
[1726155324230,3.3476,134.43,134.39,3.3485]
[1726155324635,3.3475,134.44,134.39,3.3485]
[1726155324933,17.82,134.45,134.38,3.3487]
[1726155325132,3.3477,134.43,134.38,3.3487]
[1726155325328,3.3477,134.43,134.34,23.6449814]
[1726155325522,17.82,134.45,134.39,3.3486]
[1726155325722,17.82,134.45,134.34,23.6449814]
[1726155325931,17.82,134.43,134.34,23.6449814]
[1726155326135,21.1676,134.43,134.34,23.6449814]
[1726155326630,21.1676,134.43,134.38,3.3486]
[1726155327122,21.1676,134.43,134.34,23.6449814]
[1726155327529,17.82,134.41,134.34,3.7820814]
[1726155327725,17.82,134.41,134.33,2.5002]
[1726155327923,8.6024,134.42,134.33,2.5002]
[1726155328126,5.2545,134.42,134.34,17.82]
[1726155328431,5.2545,134.42,134.38,3.3486]
[1726155328628,5.2545,134.42,134.34,21.55772321]
[1726155328828,5.2545,134.42,134.34,5.76832321]
[1726155329134,5.2545,134.42,134.34,3.73772321]
[1726155329135,17.82,134.41,134.34,3.73772321]
[1726155329321,20.3309,134.41,134.35,3.3494]
[1726155329520,20.3309,134.41,134.36,3.73177083]
[1726155329725,20.3309,134.41,134.3,17.82]
[1726155330029,3.3487,134.39,134.34,3.3498]
[1726155330239,17.82,134.39,134.35,3.79836309]
[1726155330434,17.82,134.39,134.3,17.82]
[1726155330734,17.82,134.39,134.33,3.3499]
[1726155330735,3.3489,134.38,134.33,3.3499]
[1726155331039,3.3489,134.38,134.33,7.06865]
[1726155331429,3.3491,134.37,134.33,3.71875]
[1726155331632,21.1691,134.37,134.32,3.3502]
[1726155332025,3.3494,134.36,134.31,3.3505]
[1726155332428,17.82,134.35,134.32,3.71269073]
[1726155332633,21.1696,134.35,134.27,4.5064]
[1726155333029,17.82,134.35,134.29,3.351]
[1726155333225,17.82,134.35,134.24,17.82]
[1726155333433,20.3987,134.35,134.24,17.82]
[1726155334333,23.7484,134.35,134.29,3.3509]
[1726155335035,23.7484,134.35,134.3,3.731671]
[1726155335232,3.3499,134.34,134.3,3.731671]
[1726155335533,3.3499,134.34,134.29,3.3511]
[1726155335737,2.5787,134.35,134.24,17.82]
[1726155336038,17.82,134.33,134.22,29.7666]
[1726155336248,3.3505,134.32,134.22,29.7666]
[1726155336440,17.82,134.31,134.22,26.1157078]
[1726155337152,17.82,134.31,134.26,3.3516]
[1726155337630,17.82,134.31,134.22,26.1157078]
[1726155338334,17.82,134.31,134.22,8.2957078]
[1726155338532,21.1707,134.31,134.22,8.2957078]
[1726155339140,17.82,134.31,134.22,8.2957078]
[1726155339326,17.82,134.31,134.27,3.3514]
[1726155340235,17.82,134.31,134.26,3.3517]
[1726155340733,17.82,134.31,134.27,3.3515]
[1726155342135,17.82,134.31,134.22,26.1157078]
[1726155342738,2.5787,134.35,134.24,17.82]
[1726155343042,5.4371,134.36,134.28,17.82]
[1726155343846,5.4371,134.36,134.32,3.3503]
[1726155344035,5.4371,134.36,134.33,3.66658646]
[1726155344634,2.7354,134.4,134.3,17.82]
[1726155344635,20.5554,134.4,134.3,17.82]
[1726155344836,23.2451,134.4,134.3,21.489938]
[1726155345034,23.2451,134.4,134.33,3.3501]
[1726155345236,23.2451,134.4,134.3,21.489938]
[1726155345438,17.82,134.38,134.3,3.669938]
[1726155345633,17.82,134.38,134.29,1.6523]
[1726155345936,17.82,134.38,134.27,25.257]
[1726155346143,2.5907,134.37,134.27,25.257]
[1726155346545,5.9398,134.37,134.3,3.3506]
[1726155346845,2.5907,134.37,134.3,3.66850253]
[1726155347040,2.5907,134.37,134.27,25.257]
[1726155347447,2.5907,134.37,134.27,17.82]
[1726155347642,2.5907,134.37,134.3,17.82]
[1726155347847,5.4251,134.4,134.32,17.82]
[1726155348745,5.4251,134.4,134.36,3.3491]
[1726155350540,23.2451,134.4,134.31,4.5191]
[1726155350742,23.2451,134.4,134.3,28.91508276]
[1726155351140,23.2451,134.4,134.33,3.3501]
[1726155351541,17.82,134.38,134.32,3.3503]
[1726155352250,2.7139,134.37,134.31,3.3504]
[1726155352447,2.7139,134.37,134.28,17.82]
[1726155352751,2.7139,134.37,134.33,3.35]
[1726155352947,2.7139,134.37,134.32,3.72878832]
[1726155353253,2.7139,134.37,134.28,17.82]
[1726155353444,17.82,134.36,134.28,17.82]
[1726155354153,2.7139,134.37,134.33,3.35]
[1726155354355,2.7139,134.37,134.34,3.67259601]
[1726155355255,2.7139,134.37,134.32,3.3502]
[1726155355847,2.7139,134.37,134.32,7.14300258]
[1726155356247,6.063,134.37,134.32,7.14300258]
[1726155356449,6.063,134.37,134.32,3.79280258]
[1726155356749,17.82,134.36,134.31,3.3505]
[1726155356951,3.3494,134.36,134.3,3.3507]
[1726155357154,17.82,134.35,134.3,7.02701281]
[1726155357348,22.921,134.35,134.3,3.67631281]
[1726155357545,26.2708,134.35,134.3,3.3506]
[1726155357745,20.5339,134.37,134.3,3.73920984]
[1726155357944,20.5339,134.37,134.28,17.82]
[1726155358159,2.7139,134.37,134.34,3.3498]
[1726155358345,2.7139,134.37,134.35,3.63331844]
[1726155358752,2.7139,134.37,134.35,3.3494]
[1726155359054,2.7139,134.37,134.36,3.69659073]
[1726155360056,2.7139,134.37,134.3,17.82]
[1726155360352,2.7139,134.37,134.3,21.61336013]
[1726155361548,2.7139,134.37,134.33,3.3499]
[1726155362651,2.7139,134.37,134.34,3.3498]
[1726155364262,3.3495,134.36,134.3,3.79336013]
[1726155364457,3.3495,134.36,134.28,17.82]
[1726155364859,23.8831,134.37,134.32,3.3502]
[1726155365054,20.5339,134.37,134.33,3.79271269]
[1726155365261,20.5339,134.37,134.28,17.82]
[1726155365559,2.7139,134.37,134.28,17.82]
[1726155365760,22.9697,134.39,134.28,17.82]
[1726155365961,5.1497,134.39,134.35,3.3494]
[1726155366263,5.1497,134.39,134.3,17.82]
[1726155366461,22.9697,134.39,134.3,17.82]
[1726155366765,2.6566,134.38,134.3,17.82]
[1726155366965,2.6566,134.38,134.3,3.76070353]
[1726155367162,2.6566,134.38,134.28,17.82]
[1726155367554,2.6566,134.38,134.34,3.3497]
[1726155367768,2.6566,134.38,134.35,3.68747796]
[1726155367963,2.5071,134.39,134.3,17.82]
[1726155368369,2.5071,134.39,134.3,21.53985691]
[1726155368865,2.5071,134.39,134.36,3.3491]
[1726155369061,2.5071,134.39,134.37,3.81178334]
[1726155369268,2.5071,134.39,134.36,3.3492]
[1726155369567,2.5071,134.39,134.37,3.66254246]
[1726155369950,2.5071,134.39,134.32,17.82]
[1726155370359,17.82,134.43,134.32,17.82]
[1726155370557,23.8647,134.43,134.38,3.3487]
[1726155370869,20.5169,134.43,134.39,3.74888631]
[1726155371062,3.348,134.42,134.37,3.3489]